bitfinex-derivatives/quotes_BTCF0:USTF0_20260127
["timestamp","ask_amount","ask_price","bid_price","bid_amount"]
[1769479010057,0.12417018,88607.0,88588.0,0.011299]
[1769479010256,0.011297,88607.0,88588.0,0.011299]
[1769479010455,0.011297,88605.0,88588.0,0.011299]
[1769479011059,0.11287,88604.0,88588.0,0.011299]
[1769479011260,0.011298,88603.0,88584.0,0.05383489]
[1769479011862,0.11287509,88602.0,88586.0,0.0113]
[1769479012566,0.011298,88602.0,88584.0,0.04253489]
[1769479012957,0.011298,88602.0,88585.0,0.0113]
[1769479013455,0.11287446,88601.0,88585.0,0.0113]
[1769479016256,0.11287446,88601.0,88587.0,0.0113]
[1769479016663,0.011297,88605.0,88587.0,0.0113]
[1769479016862,0.11287446,88604.0,88587.0,0.0113]
[1769479017064,0.011298,88603.0,88583.0,0.0113]
[1769479017264,0.011298,88603.0,88585.0,0.0113]
[1769479017762,0.11287446,88602.0,88585.0,0.0113]
[1769479019166,0.11287446,88602.0,88582.0,0.10172]
[1769479019367,0.11287446,88602.0,88587.0,0.0113]
[1769479019569,0.10172,88605.0,88587.0,0.0113]
[1769479019770,0.12417182,88604.0,88587.0,0.0113]
[1769479020160,0.011298,88604.0,88587.0,0.0113]
[1769479020361,0.11287382,88603.0,88589.0,0.011299]
[1769479020770,0.10172,88605.0,88589.0,0.011299]
[1769479021072,0.11287191,88604.0,88591.0,0.011299]
[1769479021567,0.11287191,88604.0,88599.0,0.011298]
[1769479021768,0.11287191,88604.0,88586.0,0.04261935]
[1769479022270,0.11287191,88604.0,88595.0,0.011299]
[1769479022772,0.11287191,88604.0,88590.0,0.011299]
[1769479022970,0.11287191,88604.0,88586.0,0.04261935]
[1769479024374,0.11287191,88604.0,88592.0,0.011299]
[1769479025471,0.11287191,88604.0,88586.0,0.04261935]
[1769479025865,0.11287191,88604.0,88587.0,0.04373042]
[1769479026870,0.11287191,88604.0,88592.0,0.011299]
[1769479028675,0.11287191,88604.0,88590.0,0.04373042]
[1769479029073,0.10172,88608.0,88590.0,0.04373042]
[1769479029375,0.11286936,88607.0,88590.0,0.04373042]
[1769479030471,0.11286936,88607.0,88593.0,0.011299]
[1769479031569,0.11286936,88607.0,88595.0,0.011299]
[1769479031879,0.11286936,88607.0,88592.0,0.011299]
[1769479033074,0.11286936,88607.0,88590.0,0.04373042]
[1769479033075,0.11286936,88607.0,88594.0,0.011299]
[1769479033772,0.11286936,88607.0,88590.0,0.04373042]
[1769479034077,0.011296,88620.0,88602.0,0.011298]
[1769479034880,0.1128528,88619.0,88605.0,0.011297]
[1769479035174,0.11952926,88624.0,88605.0,0.011297]
[1769479035379,0.11952926,88624.0,88610.0,0.011297]
[1769479035380,0.10823426,88624.0,88610.0,0.011297]
[1769479036070,0.11284516,88623.0,88610.0,0.011297]
[1769479039277,0.11284516,88623.0,88610.0,0.05480934]
[1769479039476,0.11284516,88623.0,88611.0,0.04351234]
[1769479039873,0.11284516,88623.0,88612.0,0.011296]
[1769479042282,0.11284516,88623.0,88611.0,0.04351234]
[1769479043379,0.11284516,88623.0,88612.0,0.011296]
[1769479044185,0.11284516,88623.0,88615.0,0.011296]
[1769479044483,0.01919178,88633.0,88615.0,0.011296]
[1769479044683,0.01919178,88633.0,88629.0,0.011294]
[1769479044684,0.00651348,88632.0,88629.0,0.011294]
[1769479044877,7.8e-07,88633.0,88621.0,0.04330669]
[1769479045077,7.8e-07,88633.0,88627.0,0.011295]
[1769479045276,0.10172,88640.0,88619.0,0.10172]
[1769479045477,0.10172,88640.0,88630.0,0.011294]
[1769479045682,0.11283625,88639.0,88630.0,0.011294]
[1769479048488,0.11283625,88639.0,88626.0,0.011295]
[1769479050701,0.11283625,88639.0,88613.0,0.04378385]
[1769479050889,0.11283625,88639.0,88614.0,0.10168]
[1769479051091,0.11283625,88639.0,88615.0,0.10168]
[1769479051092,0.011294,88629.0,88615.0,0.10168]
[1769479051293,0.011295,88627.0,88608.0,0.011297]
[1769479051492,0.011295,88627.0,88610.0,0.112977]
[1769479051689,0.11282543,88626.0,88610.0,0.112977]
[1769479052494,0.011294,88630.0,88610.0,0.112977]
[1769479052899,0.11284325,88629.0,88610.0,0.112977]
[1769479053088,0.11284325,88629.0,88614.0,0.011296]
[1769479053591,0.011294,88633.0,88614.0,0.011296]
[1769479053789,0.11284134,88632.0,88610.0,0.10168]
[1769479054184,0.011293,88640.0,88616.0,0.04383913]
[1769479054393,0.10168,88637.0,88616.0,0.04383913]
[1769479054893,0.11283306,88636.0,88619.0,0.011295]
[1769479055303,0.03065431,88645.0,88627.0,0.04415723]
[1769479055503,0.03065431,88645.0,88619.0,0.2976]
[1769479055504,0.03065431,88645.0,88629.0,0.011294]
[1769479055798,0.03065431,88645.0,88631.0,0.011294]
[1769479056396,0.03065431,88643.0,88631.0,0.011294]
[1769479059893,0.03065431,88643.0,88627.0,0.011294]
[1769479060197,0.03065431,88643.0,88634.0,0.011294]
[1769479060497,0.03065431,88643.0,88630.0,0.011294]
[1769479061393,0.03065431,88643.0,88628.0,0.011294]
[1769479062100,0.03065431,88663.0,88643.0,0.03286223]
[1769479062289,0.03065431,88663.0,88649.0,0.011292]
[1769479062599,0.03065431,88656.0,88642.0,0.011293]
[1769479063390,0.03065431,88656.0,88640.0,0.10168]
[1769479063694,0.29756,88678.0,88640.0,0.10168]
[1769479063695,0.03065431,88654.0,88640.0,0.10168]
[1769479063899,0.03065431,88654.0,88634.0,0.011294]
[1769479064103,0.03065431,88654.0,88636.0,0.011293]
[1769479064402,0.00246613,88652.0,88636.0,0.011293]
[1769479064701,0.00246613,88652.0,88634.0,0.011294]
[1769479064901,0.10168,88658.0,88631.0,0.10168]
[1769479064902,0.00216186,88650.0,88632.0,0.011294]
[1769479066486,0.00216186,88650.0,88635.0,0.011294]
[1769479068799,0.00216186,88650.0,88631.0,0.10168]
[1769479068800,0.00216186,88650.0,88632.0,0.03645823]
[1769479069099,0.00216186,88650.0,88639.0,0.011293]
[1769479069996,0.00477701,88657.0,88636.0,0.03646349]
[1769479070200,0.00477701,88657.0,88639.0,0.03646349]
[1769479070401,0.00477701,88656.0,88639.0,0.03646349]
[1769479071102,0.00383155,88654.0,88642.0,0.011293]
[1769479071700,0.11280633,88653.0,88642.0,0.011293]
[1769479071900,0.11280633,88653.0,88643.0,0.011293]
[1769479072101,0.21448633,88653.0,88643.0,0.011293]
[1769479073213,0.21937917,88653.0,88640.0,0.011293]
[1769479073394,0.00489284,88652.0,88640.0,0.011293]
[1769479074203,0.11728729,88651.0,88640.0,0.011293]
[1769479074594,0.00447905,88651.0,88640.0,0.011293]
[1769479078405,0.00260761,88649.0,88631.0,0.1378191]
[1769479078708,0.00260761,88647.0,88631.0,0.1491131]
[1769479079901,0.00260761,88647.0,88631.0,0.112974]
[1769479081007,0.00260761,88647.0,88633.0,0.011294]
[1769479081699,0.162766,88650.0,88631.0,0.10168]
[1769479081907,0.00163622,88641.0,88631.0,0.10168]
[1769479082404,0.00163622,88641.0,88629.0,0.03615336]
[1769479083411,0.00124271,88640.0,88629.0,0.03615336]
[1769479084014,0.01213503,88644.0,88629.0,0.03615336]
[1769479084209,0.00084303,88639.0,88622.0,0.011295]
[1769479084511,0.00084303,88639.0,88621.0,0.13775096]
[1769479084512,0.00084303,88635.0,88621.0,0.10168]
[1769479084714,0.16360903,88632.0,88621.0,0.10168]
[1769479085102,0.00084303,88632.0,88621.0,0.10168]
[1769479086809,0.162766,88631.0,88621.0,0.10168]
[1769479087207,0.011294,88630.0,88621.0,0.10168]
[1769479087811,0.011294,88630.0,88614.0,0.03650569]
[1769479089012,0.011294,88630.0,88610.0,0.011297]
[1769479089313,0.011294,88630.0,88611.0,0.03674283]
[1769479091917,0.00628704,88642.0,88611.0,0.03674283]
[1769479092113,0.06205411,88654.0,88631.0,0.03607096]
[1769479092114,0.523853,88641.0,88631.0,0.03607096]
[1769479092310,0.39924,88640.0,88631.0,0.03607096]
[1769479092722,0.011293,88641.0,88631.0,0.03607096]
[1769479093024,0.1128407,88639.0,88631.0,0.03607096]
[1769479093223,0.04908766,88642.0,88627.0,0.03607096]
[1769479093416,0.11282161,88640.0,88627.0,0.03607096]
[1769479093615,0.57512,88641.0,88627.0,0.03607096]
[1769479093915,0.11282161,88640.0,88627.0,0.03607096]
[1769479094318,0.12411461,88640.0,88627.0,0.03607096]
[1769479095316,0.011293,88639.0,88627.0,0.03607096]
[1769479096025,0.11282479,88638.0,88627.0,0.03607096]
[1769479100032,0.57512,88641.0,88627.0,0.03607096]
[1769479100227,0.586413,88641.0,88627.0,0.03607096]
[1769479100428,0.11282543,88640.0,88627.0,0.03607096]
[1769479100828,0.47636,88639.0,88627.0,0.03607096]
[1769479101028,0.57804,88639.0,88627.0,0.03607096]
[1769479101425,0.11282415,88638.0,88627.0,0.03607096]
[1769479101630,0.33655805,88696.0,88620.0,0.162766]
[1769479101631,0.10168,88643.0,88635.0,0.03599698]
[1769479101832,0.0641287,88644.0,88635.0,0.03599698]
[1769479103631,0.47668,88647.0,88635.0,0.03599698]
[1769479103838,0.10168,88645.0,88635.0,0.03599698]
[1769479104130,0.21449652,88645.0,88635.0,0.03599698]
[1769479104337,0.10168,88645.0,88635.0,0.03599698]
[1769479104731,0.11281461,88644.0,88635.0,0.03599698]
[1769479113156,0.03505944,88640.0,88622.0,0.011295]
[1769479113352,0.03505944,88638.0,88621.0,0.03599698]
[1769479113548,0.03505944,88636.0,88617.0,0.10168]
[1769479114060,0.03505944,88636.0,88617.0,0.13767698]
[1769479114560,0.47976,88638.0,88617.0,0.13767698]
[1769479114561,0.03505944,88632.0,88617.0,0.13767698]
[1769479114858,0.03505944,88632.0,88618.0,0.011296]
[1769479118359,0.03505944,88632.0,88617.0,0.13767698]
[1769479123463,0.03505944,88630.0,88617.0,0.10168]
[1769479123662,0.03505944,88628.0,88617.0,0.10168]
[1769479123959,0.03505944,88622.0,88608.0,0.03599698]
[1769479124961,0.10168,88623.0,88611.0,0.03599698]
[1769479126268,0.10168,88623.0,88614.0,0.04729298]
[1769479126457,0.10168,88623.0,88614.0,0.03599698]
[1769479127266,0.10168,88623.0,88610.0,0.174063]
[1769479127466,0.10168,88623.0,88610.0,0.21005998]
[1769479129169,0.10168,88623.0,88612.0,0.011296]
[1769479129369,0.10168,88623.0,88610.0,0.19876298]
[1769479130068,0.03525712,88621.0,88606.0,0.08985177]
[1769479130268,0.03525712,88621.0,88607.0,0.011297]
[1769479130469,0.03525712,88621.0,88606.0,0.12384971]
[1769479130670,0.03525712,88621.0,88607.0,0.03399794]
[1769479132070,0.03525712,88621.0,88610.0,0.162766]
[1769479133673,0.03525712,88621.0,88607.0,0.03399794]
[1769479138373,0.04655212,88621.0,88607.0,0.03399794]
[1769479138576,0.03525712,88616.0,88604.0,0.08985177]
[1769479139078,0.03525712,88616.0,88604.0,0.12384971]
[1769479140276,0.03525712,88616.0,88604.0,0.03399794]
[1769479140768,0.19802312,88620.0,88605.0,0.04529494]
[1769479141074,0.03525712,88620.0,88606.0,0.03399794]
[1769479143775,0.03525712,88620.0,88603.0,0.08985177]
[1769479143973,0.03525712,88618.0,88602.0,0.08985177]
[1769479144276,0.03525712,88616.0,88600.0,0.13514771]
[1769479144467,0.03525712,88616.0,88600.0,0.12384971]
[1769479144670,0.03525712,88616.0,88600.0,0.03399794]
[1769479148379,0.03525712,88615.0,88600.0,0.03399794]
[1769479149575,0.03525712,88615.0,88599.0,0.10168]
[1769479149774,0.03525712,88615.0,88600.0,0.011298]
[1769479149981,0.03525712,88615.0,88599.0,0.10168]
[1769479150184,0.011295,88625.0,88607.0,0.03399794]
[1769479150779,0.04655212,88625.0,88607.0,0.03399794]
[1769479150980,0.03525712,88624.0,88607.0,0.03399794]
[1769479151176,0.03525712,88623.0,88607.0,0.03399794]
[1769479151686,0.03525712,88623.0,88608.0,0.04529494]
[1769479151889,0.11284643,88622.0,88611.0,0.011297]
[1769479152785,0.11284643,88622.0,88611.0,0.04529494]
[1769479152981,0.11284643,88622.0,88612.0,0.03399794]
[1769479153584,0.03224104,88621.0,88612.0,0.03399794]
[1769479153784,0.00793992,88621.0,88612.0,0.03399794]
[1769479159296,0.00481101,88621.0,88612.0,0.03399794]
[1769479162100,0.00481101,88621.0,88613.0,0.011296]
[1769479162395,0.03573305,88631.0,88614.0,0.011296]
[1769479162593,0.10168,88630.0,88613.0,0.011296]
[1769479162895,0.10168,88630.0,88611.0,0.112977]
[1769479163397,0.11283943,88629.0,88611.0,0.112977]
[1769479163894,0.011295,88628.0,88611.0,0.112977]
[1769479166596,0.011295,88628.0,88613.0,0.011296]
[1769479167205,0.03584343,88627.0,88611.0,0.10168]
[1769479167499,0.03584343,88627.0,88612.0,0.011296]
[1769479168801,0.011295,88626.0,88611.0,0.10168]
[1769479171300,0.03584343,88627.0,88612.0,0.011296]
[1769479175893,0.03580115,88629.0,88611.0,0.10168]
[1769479176100,0.03580115,88628.0,88612.0,0.011296]
[1769479179207,0.011295,88627.0,88612.0,0.011296]
[1769479179905,0.011295,88627.0,88611.0,0.10168]
[1769479180096,0.011295,88627.0,88611.0,0.112977]
[1769479180497,0.03580115,88628.0,88611.0,0.06589374]
[1769479180498,0.011296,88614.0,88611.0,0.06589374]
[1769479180705,0.011296,88614.0,88589.0,0.16751558]
[1769479180706,0.011296,88612.0,88596.0,0.11378572]
[1769479180898,0.011297,88610.0,88603.0,0.33164]
[1769479181201,0.011296,88613.0,88603.0,0.33164]
[1769479184096,0.04612149,88616.0,88603.0,0.33164]
[1769479184502,0.11285662,88615.0,88603.0,0.36632863]
[1769479184700,0.11285662,88615.0,88604.0,0.03468863]
[1769479185208,0.011296,88617.0,88604.0,0.03468863]
[1769479185409,0.11285471,88617.0,88604.0,0.03468863]
[1769479185706,0.011295,88621.0,88604.0,0.03468863]
[1769479185906,0.011295,88624.0,88606.0,0.03468863]
[1769479186208,0.11285471,88619.0,88606.0,0.03468863]
[1769479186408,0.011295,88624.0,88606.0,0.03468863]
[1769479186706,0.011295,88622.0,88606.0,0.03468863]
[1769479187307,0.11284898,88621.0,88606.0,0.03468863]
[1769479188402,0.11284898,88621.0,88610.0,0.03468863]
[1769479188708,0.011295,88623.0,88612.0,0.03468863]
[1769479188902,0.011295,88626.0,88612.0,0.03468863]
[1769479189110,0.11284962,88625.0,88612.0,0.03468863]
[1769479189408,0.011295,88626.0,88612.0,0.03468863]
[1769479189608,0.011295,88624.0,88612.0,0.03468863]
[1769479190210,0.011295,88627.0,88612.0,0.03468863]
[1769479190410,0.11284389,88623.0,88612.0,0.03468863]
[1769479190712,0.011295,88627.0,88612.0,0.03468863]
[1769479191210,0.11284389,88626.0,88612.0,0.03468863]
[1769479193613,0.11284389,88626.0,88614.0,0.0373525]
[1769479193813,0.011294,88630.0,88614.0,0.0373525]
[1769479194806,0.11283879,88629.0,88615.0,0.0373525]
[1769479196218,0.11283879,88629.0,88614.0,0.011296]
[1769479196219,0.03432301,88638.0,88619.0,0.0373525]
[1769479196417,0.03432301,88638.0,88621.0,0.0373525]
[1769479196608,0.11283879,88632.0,88622.0,0.10168]
[1769479196804,0.03432301,88636.0,88622.0,0.10168]
[1769479197306,0.11283879,88635.0,88622.0,0.10168]
[1769479197511,0.12413279,88635.0,88622.0,0.10168]
[1769479199619,0.15339993,88635.0,88622.0,0.10168]
[1769479200116,0.15339993,88635.0,88623.0,0.0373525]
[1769479200315,0.11283879,88635.0,88623.0,0.0373525]
[1769479200615,0.02765873,88640.0,88623.0,0.0373525]
[1769479201016,0.11283052,88639.0,88623.0,0.0373525]
[1769479201317,0.011293,88638.0,88623.0,0.0373525]
[1769479201708,0.03735567,88638.0,88623.0,0.0373525]
[1769479202116,0.1128267,88637.0,88623.0,0.0373525]
[1769479202418,0.011293,88636.0,88623.0,0.0373525]
[1769479202620,0.0244845,88636.0,88623.0,0.0373525]
[1769479202818,0.011294,88634.0,88623.0,0.0373525]
[1769479203213,0.11282797,88635.0,88623.0,0.0373525]
[1769479203214,0.13557613,88635.0,88623.0,0.0373525]
[1769479203414,0.02274816,88635.0,88624.0,0.011295]
[1769479203620,0.02274816,88635.0,88624.0,0.0486475]
[1769479203814,0.011293,88643.0,88626.0,0.011295]
[1769479204018,0.011292,88646.0,88631.0,0.0373525]
[1769479204211,0.011292,88646.0,88633.0,0.0373525]
[1769479204527,0.011292,88646.0,88635.0,0.0373525]
[1769479204718,0.11282288,88645.0,88635.0,0.0373525]
[1769479205616,0.13242169,88645.0,88634.0,0.10168]
[1769479205923,0.13242169,88645.0,88634.0,0.1390325]
[1769479206112,0.01808328,88643.0,88634.0,0.10168]
[1769479206312,0.011293,88642.0,88634.0,0.10168]
[1769479207410,0.01808328,88643.0,88634.0,0.10168]
[1769479208006,0.02633546,88648.0,88634.0,0.10168]
[1769479208512,0.02633546,88648.0,88635.0,0.0373525]
[1769479208513,0.0764172,88644.0,88635.0,0.0373525]
[1769479208711,0.01504346,88648.0,88635.0,0.0373525]
[1769479208912,0.011292,88647.0,88635.0,0.0373525]
[1769479209111,0.011292,88647.0,88636.0,0.57744]
[1769479209112,0.12410661,88647.0,88636.0,0.57744]
[1769479210524,0.011292,88645.0,88636.0,0.57744]
[1769479211824,0.01457812,88646.0,88637.0,0.57832]
[1769479212029,0.01457812,88646.0,88638.0,0.47676081]
[1769479212215,0.01457812,88646.0,88639.0,0.10168]
[1769479212415,0.01457812,88646.0,88640.0,0.10168]
[1769479212720,0.011293,88643.0,88640.0,0.10168]
[1769479212920,0.01457812,88646.0,88640.0,0.10168]
[1769479213122,0.03655102,88649.0,88640.0,0.10168]
[1769479213625,0.11281206,88648.0,88640.0,0.10168]
[1769479214022,0.01780275,88655.0,88641.0,0.0373525]
[1769479214221,0.00651175,88655.0,88641.0,0.0373525]
[1769479214423,0.03534498,88649.0,88641.0,0.0373525]
[1769479214618,0.00651175,88655.0,88643.0,0.0373525]
[1769479214818,0.03655102,88663.0,88643.0,0.0373525]
[1769479215021,0.1128057,88654.0,88643.0,0.0373525]
[1769479215226,0.011291,88657.0,88643.0,0.0373525]
[1769479215526,0.11280506,88656.0,88643.0,0.0373525]
[1769479215718,0.03655102,88658.0,88644.0,0.0373525]
[1769479215922,0.00651158,88655.0,88644.0,0.0373525]
[1769479216227,0.11280506,88656.0,88644.0,0.0373525]
[1769479216525,0.03655102,88658.0,88644.0,0.0373525]
[1769479216526,0.00651115,88655.0,88644.0,0.0373525]
[1769479216726,0.11280379,88657.0,88644.0,0.0373525]
[1769479216930,0.00651161,88656.0,88644.0,0.0373525]
[1769479217130,0.03655102,88658.0,88644.0,0.0373525]
[1769479217325,0.11280379,88657.0,88644.0,0.0373525]
[1769479217629,0.03655102,88658.0,88644.0,0.0373525]
[1769479217826,0.00651161,88656.0,88648.0,0.0373525]
[1769479218027,0.11280315,88657.0,88650.0,0.0373525]
[1769479218323,0.16278603,88670.0,88652.0,0.0373525]
[1769479218324,0.01129,88661.0,88652.0,0.0373525]
[1769479218524,0.006511,88656.0,88651.0,0.10168]
[1769479218727,0.04784102,88661.0,88651.0,0.10168]
[1769479218927,0.00651098,88655.0,88651.0,0.10168]
[1769479219132,0.04784102,88661.0,88651.0,0.10168]
[1769479219319,0.00651105,88655.0,88651.0,0.10168]
[1769479219533,0.04784102,88661.0,88651.0,0.10168]
[1769479219534,0.03655102,88661.0,88651.0,0.10168]
[1769479220032,0.011291,88659.0,88651.0,0.10168]
[1769479220734,0.11279679,88658.0,88651.0,0.10168]
[1769479221134,0.04784102,88661.0,88651.0,0.10168]
[1769479221634,0.11279743,88660.0,88651.0,0.10168]
[1769479222334,0.11279743,88660.0,88651.0,0.15943557]
[1769479222632,0.01129,88664.0,88651.0,0.15943557]
[1769479222832,0.06554571,88664.0,88651.0,0.15943557]
[1769479223033,0.11279616,88663.0,88651.0,0.15943557]
[1769479223237,0.06554571,88664.0,88651.0,0.15943557]
[1769479223736,0.11279425,88663.0,88651.0,0.15943557]
[1769479224727,0.05425571,88669.0,88652.0,0.05775557]
[1769479224928,0.05425571,88669.0,88654.0,0.05775557]
[1769479225133,0.16704996,88669.0,88656.0,0.05775557]
[1769479225436,0.16704996,88669.0,88657.0,0.47964]
[1769479225734,0.11279425,88669.0,88660.0,0.05775557]
[1769479225937,0.00789422,88673.0,88660.0,0.05775557]
[1769479226141,0.011289,88672.0,88660.0,0.05775557]
[1769479226438,0.05425571,88669.0,88657.0,0.47964]
[1769479227129,0.05425571,88669.0,88657.0,0.53739557]
[1769479227330,0.00789422,88673.0,88658.0,0.05775557]
[1769479227637,0.11278661,88672.0,88658.0,0.05775557]
[1769479227834,0.16278603,88670.0,88657.0,0.47964]
[1769479228131,0.16278603,88670.0,88658.0,0.05775557]
[1769479231234,0.05425571,88672.0,88659.0,0.01129]
[1769479231543,0.00789422,88673.0,88666.0,0.06904457]
[1769479231738,0.16278603,88680.0,88668.0,0.011289]
[1769479232042,0.11278534,88672.0,88669.0,0.48128]
[1769479232340,0.21704174,88680.0,88669.0,0.47708426]
[1769479232542,0.21704174,88680.0,88669.0,0.47288952]
[1769479232839,0.11277707,88679.0,88669.0,0.46869014]
[1769479233635,0.11277707,88679.0,88669.0,0.46449615]
[1769479234633,0.11277707,88679.0,88670.0,0.011289]
[1769479234941,0.11277707,88679.0,88669.0,0.29498243]
[1769479235138,0.11277707,88679.0,88669.0,0.28657481]
[1769479235340,0.05425571,88684.0,88669.0,0.28657481]
[1769479235537,0.16702833,88683.0,88669.0,0.28657481]
[1769479235840,0.05425571,88683.0,88669.0,0.28657481]
[1769479236235,0.11277262,88682.0,88669.0,0.28657481]
[1769479236434,0.16278603,88680.0,88669.0,0.28657481]
[1769479236834,0.05425571,88683.0,88670.0,0.011289]
[1769479237042,0.11277008,88679.0,88670.0,0.011289]
[1769479237242,0.11277008,88679.0,88669.0,0.28657481]
[1769479237444,0.05425571,88683.0,88669.0,0.28657481]
[1769479237635,0.11277199,88682.0,88669.0,0.28657481]
[1769479237943,0.05425571,88682.0,88669.0,0.28657481]
[1769479238135,0.1670277,88682.0,88669.0,0.28657481]
[1769479238638,0.16702643,88681.0,88669.0,0.28657481]
[1769479239149,0.05425571,88681.0,88669.0,0.28657481]
[1769479239336,0.11277072,88680.0,88669.0,0.28657481]
[1769479241338,0.11277072,88680.0,88670.0,0.06904457]
[1769479241539,0.05425571,88686.0,88670.0,0.06904457]
[1769479241938,0.1670277,88685.0,88670.0,0.06904457]
[1769479242145,0.05425571,88684.0,88670.0,0.06904457]
[1769479242445,0.05425571,88684.0,88669.0,0.22881924]
[1769479242645,0.05425571,88682.0,88669.0,0.22881924]
[1769479243340,0.11276817,88681.0,88669.0,0.22881924]
[1769479243736,0.16278603,88680.0,88669.0,0.22881924]
[1769479244645,0.05425571,88682.0,88669.0,0.22881924]
[1769479245038,0.11277199,88681.0,88669.0,0.22881924]
[1769479245645,0.16278603,88680.0,88669.0,0.22881924]
[1769479247346,0.16278603,88680.0,88670.0,0.05775557]
[1769479248149,0.05425571,88682.0,88670.0,0.05775557]
[1769479248446,0.11277199,88681.0,88671.0,0.011289]
[1769479249147,0.11277199,88681.0,88671.0,0.0635687]
[1769479249651,0.11277199,88681.0,88671.0,0.011289]
[1769479253452,0.11277199,88681.0,88669.0,0.28109894]
[1769479253853,0.16586518,88681.0,88669.0,0.28109894]
[1769479254453,0.16586518,88681.0,88672.0,0.011289]
[1769479255245,0.16586518,88681.0,88671.0,0.10164]
[1769479258160,0.31755922,88690.0,88672.0,0.0522797]
[1769479258457,0.05309319,88687.0,88672.0,0.0522797]
[1769479259157,0.05309319,88685.0,88672.0,0.0522797]
[1769479259660,0.05309319,88685.0,88672.0,0.0635687]
[1769479260261,0.05309319,88685.0,88674.0,0.011289]
[1769479260450,0.16278603,88690.0,88681.0,0.011288]
[1769479260656,0.10164,88696.0,88681.0,0.0522797]
[1769479260959,0.1127669,88693.0,88681.0,0.0522797]
[1769479261359,0.1127669,88693.0,88680.0,0.011288]
[1769479261360,0.06438019,88690.0,88677.0,0.10164]
[1769479261564,0.05309319,88688.0,88669.0,0.0522797]
[1769479261754,0.16278603,88680.0,88669.0,0.0522797]
[1769479261960,0.05309319,88679.0,88670.0,0.39908]
[1769479262157,0.05309319,88679.0,88671.0,0.10164]
[1769479263163,0.16278603,88680.0,88671.0,0.10164]
[1769479263765,0.16278603,88680.0,88672.0,0.011289]
[1769479263962,0.05309319,88683.0,88672.0,0.011289]
[1769479266867,0.05309319,88683.0,88671.0,0.1539197]
[1769479267059,0.05309319,88683.0,88671.0,0.10164]
[1769479268064,0.05309319,88683.0,88667.0,0.0635687]
[1769479268265,0.05309319,88683.0,88668.0,0.1539197]
[1769479268660,0.05309319,88683.0,88669.0,0.0635687]
[1769479272568,0.05309319,88683.0,88671.0,0.0635687]
[1769479272867,0.05309319,88690.0,88673.0,0.0635687]
[1769479273164,0.16586327,88690.0,88673.0,0.0522797]
[1769479273763,0.05309319,88695.0,88677.0,0.0522797]
[1769479274067,0.05309319,88694.0,88677.0,0.0522797]
[1769479274671,0.16585119,88693.0,88677.0,0.0522797]
[1769479275061,0.10164,88696.0,88687.0,0.011287]
[1769479275258,0.05309319,88701.0,88686.0,0.01645425]
[1769479275465,0.112758,88695.0,88686.0,0.01645425]
[1769479275660,0.05309319,88701.0,88672.0,0.10164]
[1769479275864,0.05309319,88701.0,88688.0,0.011287]
[1769479276069,0.11275037,88700.0,88688.0,0.011287]
[1769479276973,0.16584356,88700.0,88684.0,0.112927]
[1769479277176,0.16584356,88700.0,88685.0,0.0522797]
[1769479277365,0.05309319,88700.0,88685.0,0.0522797]
[1769479277566,0.1127491,88699.0,88685.0,0.0522797]
[1769479278574,0.16584229,88699.0,88685.0,0.0522797]
[1769479278970,0.05309319,88699.0,88685.0,0.0522797]
[1769479279275,0.11274974,88698.0,88685.0,0.0522797]
[1769479281285,0.11274974,88698.0,88686.0,0.011287]
[1769479281682,0.11274974,88698.0,88685.0,0.0522797]
[1769479282182,0.05309319,88699.0,88687.0,0.0430921]
[1769479282780,0.05309319,88699.0,88688.0,0.0543791]
[1769479284990,0.04639777,88693.0,88658.0,0.0430921]
[1769479285296,0.04639777,88685.0,88668.0,0.0430921]
[1769479286781,0.04639777,88685.0,88670.0,0.0430921]
[1769479286993,0.04639777,88685.0,88671.0,0.1446921]
[1769479289700,0.04639777,88685.0,88672.0,0.1016]
[1769479291295,0.04639777,88685.0,88672.0,0.1446921]
[1769479293802,0.04639777,88685.0,88672.0,0.0430921]
[1769479294004,0.04639777,88685.0,88673.0,0.1016]
[1769479295305,0.04639777,88695.0,88674.0,0.0430921]
[1769479295613,0.04639777,88690.0,88674.0,0.0430921]
[1769479296002,0.04639777,88695.0,88679.0,0.0430921]
[1769479296306,0.15916403,88693.0,88679.0,0.0430921]
[1769479296701,0.04639777,88693.0,88679.0,0.0430921]
[1769479297002,0.11275609,88692.0,88679.0,0.0430921]
[1769479298208,0.15915386,88692.0,88679.0,0.0430921]
[1769479298507,0.04639777,88692.0,88679.0,0.0430921]
[1769479298808,0.04639777,88690.0,88675.0,0.0543801]
[1769479299007,0.04639777,88690.0,88675.0,0.0430921]
[1769479300707,0.04639777,88690.0,88676.0,0.0430921]
[1769479301111,0.1016,88696.0,88687.0,0.0430921]
[1769479301502,0.04639777,88707.0,88691.0,0.0430921]
[1769479301808,0.04639777,88706.0,88691.0,0.0430921]
[1769479302409,0.11275037,88705.0,88691.0,0.0430921]
[1769479302708,0.04639777,88710.0,88693.0,0.0430921]
[1769479303104,0.11274147,88709.0,88696.0,0.0430921]
[1769479303710,0.15913924,88709.0,88696.0,0.0543781]
[1769479304109,0.04639777,88709.0,88696.0,0.0543781]
[1769479304311,0.04639777,88707.0,88693.0,0.1016]
[1769479304504,0.04639777,88707.0,88693.0,0.1446921]
[1769479304703,0.04639777,88712.0,88694.0,0.0430921]
[1769479305105,0.04639777,88711.0,88694.0,0.0430921]
[1769479305701,0.15913416,88710.0,88694.0,0.0430921]
[1769479306097,0.04639777,88710.0,88694.0,0.0430921]
[1769479306303,0.11273639,88709.0,88694.0,0.0430921]
[1769479306504,0.11273639,88709.0,88698.0,0.011285]
[1769479307108,0.15913416,88709.0,88698.0,0.011285]
[1769479307308,0.04639777,88708.0,88694.0,0.0543781]
[1769479307610,0.04639777,88708.0,88697.0,0.011286]
[1769479309815,0.04639777,88708.0,88694.0,0.0430921]
[1769479310211,0.04639777,88708.0,88700.0,0.011285]
[1769479310411,0.00789065,88713.0,88693.0,0.1016]
[1769479310412,3.2e-07,88713.0,88712.0,0.011284]
[1769479310611,0.06072506,88732.0,88709.0,0.03963171]
[1769479310802,0.480081,88735.0,88711.0,0.03963171]
[1769479311007,0.11273448,88725.0,88714.0,0.011283]
[1769479311407,0.11273448,88725.0,88711.0,0.05091571]
[1769479311608,0.11273448,88725.0,88711.0,0.011284]
[1769479312618,0.03916067,88724.0,88711.0,0.011284]
[1769479313329,0.03916067,88722.0,88711.0,0.011284]
[1769479314416,0.14076067,88726.0,88715.0,0.011283]
[1769479314617,0.03916067,88725.0,88715.0,0.011283]
[1769479314819,0.15187927,88725.0,88715.0,0.011283]
[1769479315012,0.1127186,88725.0,88715.0,0.011283]
[1769479315719,0.15187927,88725.0,88715.0,0.011283]